bitfinex-derivatives/quotes_BTCF0:USTF0_20250912
["timestamp","ask_amount","ask_price","bid_price","bid_amount"]
[1757678617446,1.81468936,114950.0,114940.0,0.0087]
[1757678617642,1.81468936,114950.0,114940.0,0.0117]
[1757678619157,1.81480936,114950.0,114940.0,0.0117]
[1757678619348,1.56480936,114950.0,114940.0,0.0117]
[1757678620151,1.63509361,114950.0,114940.0,0.0117]
[1757678620755,1.88509361,114950.0,114940.0,0.0105506]
[1757678621050,0.02197,114910.0,114900.0,0.23154218]
[1757678621352,0.40333565,114910.0,114900.0,0.41890186]
[1757678621553,0.04253565,114910.0,114900.0,0.41890186]
[1757678622253,1.38145533,114910.0,114900.0,0.23154218]
[1757678622452,1.38345533,114910.0,114900.0,0.23154218]
[1757678622648,0.59269533,114910.0,114900.0,0.23154218]
[1757678622853,1.38345533,114910.0,114900.0,0.23154218]
[1757678623041,1.38349533,114910.0,114900.0,0.41890186]
[1757678623442,1.19613565,114910.0,114900.0,0.41890186]
[1757678623652,1.38349533,114910.0,114900.0,0.41890186]
[1757678623852,0.40533565,114910.0,114900.0,0.41890186]
[1757678624053,0.40533565,114910.0,114900.0,0.0491825]
[1757678624254,0.40533565,114910.0,114900.0,0.42390186]
[1757678624452,1.19633565,114910.0,114900.0,0.42390186]
[1757678624651,0.40533565,114910.0,114900.0,0.42390186]
[1757678624854,1.19894565,114910.0,114900.0,0.42390186]
[1757678625751,1.19894565,114910.0,114900.0,0.0491825]
[1757678625953,0.38597565,114910.0,114900.0,0.86126154]
[1757678626156,0.02517565,114910.0,114900.0,0.67390186]
[1757678626558,0.02517565,114910.0,114900.0,0.94827384]
[1757678626855,0.71681536,114930.0,114920.0,0.03662]
[1757678627157,0.38277,114930.0,114920.0,0.22397968]
[1757678627357,0.38277,114930.0,114920.0,0.41133936]
[1757678628163,0.38277,114930.0,114920.0,0.41333936]
[1757678628461,0.38277,114930.0,114920.0,0.03862]
[1757678628656,0.38277,114930.0,114920.0,0.41333936]
[1757678629063,0.38477,114930.0,114920.0,0.41433936]
[1757678630065,0.57212968,114930.0,114920.0,0.22697968]
[1757678630365,0.58484968,114930.0,114920.0,0.22697968]
[1757678630857,0.39749,114930.0,114920.0,0.22697968]
[1757678631262,0.57212968,114930.0,114920.0,0.41433936]
[1757678631458,0.38477,114930.0,114920.0,0.41433936]
[1757678633765,0.38477,114930.0,114920.0,0.03962]
[1757678633960,0.38477,114930.0,114920.0,0.41433936]
[1757678635765,0.57212968,114930.0,114920.0,0.41433936]
[1757678636767,0.38477,114930.0,114920.0,0.41433936]
[1757678636965,0.39829,114930.0,114920.0,0.41433936]
[1757678637162,0.39829,114930.0,114920.0,0.03962]
[1757678637366,0.39829,114930.0,114920.0,0.41433936]
[1757678638969,0.58564968,114930.0,114920.0,0.41433936]
[1757678639362,0.39829,114930.0,114920.0,0.41433936]
[1757678640367,0.38477,114930.0,114920.0,0.41433936]
[1757678641571,0.57212968,114930.0,114920.0,0.41433936]
[1757678642874,0.39829,114930.0,114920.0,0.41433936]
[1757678643073,0.58564968,114930.0,114920.0,0.41433936]
[1757678643773,0.39829,114930.0,114920.0,0.41433936]
[1757678643973,0.58564968,114930.0,114920.0,0.41433936]
[1757678644372,0.58564968,114930.0,114920.0,0.03962]
[1757678644677,0.58564968,114930.0,114920.0,0.41433936]
[1757678645167,0.39829,114930.0,114920.0,0.41433936]
[1757678645873,0.60329,114930.0,114920.0,0.41433936]
[1757678646574,0.79064968,114930.0,114920.0,0.41433936]
[1757678652878,0.60329,114930.0,114920.0,0.41433936]
[1757678653079,0.79064968,114930.0,114920.0,0.41433936]
[1757678654177,0.79064968,114930.0,114920.0,0.22697968]
[1757678654376,0.60329,114930.0,114920.0,0.22697968]
[1757678654577,0.79064968,114930.0,114920.0,0.22697968]
[1757678655777,1.06088342,114930.0,114920.0,0.0261]
[1757678655984,1.06088342,114930.0,114920.0,0.003]
[1757678656683,0.87352374,114930.0,114920.0,0.21249968]
[1757678656877,1.85160342,114930.0,114920.0,0.21249968]
[1757678657182,1.85160342,114930.0,114920.0,0.22553968]
[1757678657784,1.64660342,114930.0,114920.0,0.21249968]
[1757678658080,0.40500374,114930.0,114920.0,0.41289936]
[1757678658283,1.19568374,114930.0,114920.0,0.41289936]
[1757678659472,1.20920374,114930.0,114920.0,0.41289936]
[1757678660585,1.39656342,114930.0,114920.0,0.03818]
[1757678660777,1.39656342,114930.0,114920.0,0.41289936]
[1757678661175,0.41852374,114930.0,114920.0,0.41289936]
[1757678661372,1.20912374,114930.0,114920.0,0.41289936]
[1757678662583,1.39648342,114930.0,114920.0,0.41289936]
[1757678662784,1.20912374,114930.0,114920.0,0.41289936]
[1757678662986,1.39648342,114930.0,114920.0,0.41289936]
[1757678664083,1.37624968,114930.0,114920.0,0.41289936]
[1757678664488,1.18889,114930.0,114920.0,0.15011803]
[1757678665076,1.18889,114930.0,114920.0,0.02514]
[1757678665386,1.31386803,114930.0,114920.0,0.02514]
[1757678665587,1.31386803,114930.0,114920.0,0.15011803]
[1757678666286,1.31386803,114930.0,114920.0,0.02514]
[1757678666686,1.31386803,114930.0,114920.0,0.15011803]
[1757678666888,1.31386803,114930.0,114920.0,0.02514]
[1757678667184,1.31386803,114930.0,114920.0,0.15011803]
[1757678668593,0.52326803,114930.0,114920.0,0.15011803]
[1757678668782,1.31474803,114930.0,114920.0,0.15011803]
[1757678670793,0.39829,114930.0,114920.0,0.15011803]
[1757678670983,1.31462803,114930.0,114920.0,0.02514]
[1757678671179,1.31462803,114930.0,114920.0,0.15011803]
[1757678675493,1.31462803,114930.0,114920.0,0.02514]
[1757678675690,1.31462803,114930.0,114920.0,0.02596]
[1757678675897,1.56462803,114930.0,114920.0,0.0117]
[1757678676692,1.68960606,114930.0,114920.0,0.0117]
[1757678676893,1.56462803,114930.0,114920.0,0.0117]
[1757678678297,1.43965,114930.0,114920.0,0.0117]
[1757678678498,1.56462803,114930.0,114920.0,0.0117]
[1757678679100,1.56766803,114930.0,114920.0,0.0117]
[1757678679400,1.31762803,114930.0,114920.0,0.0117]
[1757678681596,1.69260606,114930.0,114920.0,0.0117]
[1757678684099,0.64829,114930.0,114920.0,0.0117]
[1757678684401,1.56734803,114930.0,114920.0,0.0117]
[1757678684801,1.69232606,114930.0,114920.0,0.0117]
[1757678685103,1.56734803,114930.0,114920.0,0.0117]
[1757678687302,1.69232606,114930.0,114920.0,0.0117]
[1757678689901,1.44237,114930.0,114920.0,0.0117]
[1757678690202,1.69232606,114930.0,114920.0,0.0117]
[1757678692304,0.89824606,114930.0,114920.0,0.0117]
[1757678692499,1.69244606,114930.0,114920.0,0.0117]
[1757678692905,0.89824606,114930.0,114920.0,0.0117]
[1757678693202,1.69224606,114930.0,114920.0,0.0117]
[1757678693607,1.44229,114930.0,114920.0,0.0117]
[1757678693795,1.69224606,114930.0,114920.0,0.0117]
[1757678693998,1.71653312,114930.0,114920.0,0.0117]
[1757678695112,1.71633312,114930.0,114920.0,0.0117]
[1757678696211,1.69465606,114930.0,114920.0,0.0117]
[1757678696598,0.90085606,114930.0,114920.0,0.0117]
[1757678696805,0.4009,114930.0,114920.0,0.03378]
[1757678697115,0.4009,114930.0,114920.0,0.28378]
[1757678697414,1.18098,114930.0,114920.0,0.54637606]
[1757678697613,1.18114,114930.0,114920.0,0.42139803]
[1757678698216,1.30611803,114930.0,114920.0,0.29642]
[1757678698512,1.30611803,114930.0,114920.0,0.42139803]
[1757678698714,1.18114,114930.0,114920.0,0.42139803]
[1757678698913,1.19436,114930.0,114920.0,0.42139803]
[1757678699817,1.31933803,114930.0,114920.0,0.42139803]
[1757678700217,1.19436,114930.0,114920.0,0.42139803]
[1757678700419,1.31933803,114930.0,114920.0,0.42139803]
[1757678701426,1.19436,114930.0,114920.0,0.29642]
[1757678701624,1.31933803,114930.0,114920.0,0.42139803]
[1757678703321,1.31933803,114930.0,114920.0,0.28378]
[1757678703620,1.31933803,114930.0,114920.0,0.40875803]
[1757678704022,1.31933803,114930.0,114920.0,0.28378]
[1757678709931,1.19436,114930.0,114920.0,0.28378]
[1757678710123,1.31933803,114930.0,114920.0,0.28378]
[1757678710826,1.31933803,114930.0,114920.0,0.40875803]
[1757678711830,1.31933803,114930.0,114920.0,0.28378]
[1757678712230,1.31672803,114930.0,114920.0,0.28378]
[1757678712724,1.31616803,114930.0,114920.0,0.28378]
[1757678714532,1.19119,114930.0,114920.0,0.28378]
[1757678714724,1.31616803,114930.0,114920.0,0.28378]
[1757678714928,1.31877803,114930.0,114920.0,0.28378]
[1757678715126,1.44375606,114930.0,114920.0,0.03378]
[1757678715335,1.44375606,114930.0,114920.0,0.0117]
[1757678715627,1.31877803,114930.0,114920.0,0.0117]
[1757678717135,1.69375606,114930.0,114920.0,0.0117]
[1757678718028,0.90055606,114930.0,114920.0,0.0117]
[1757678718234,1.69383606,114930.0,114920.0,0.0117]
[1757678718428,1.69383606,114930.0,114920.0,0.0107]
[1757678718634,1.59315812,114930.0,114920.0,0.0107]
[1757678718936,1.71845615,114930.0,114920.0,0.0107]
[1757678719826,1.71645615,114930.0,114920.0,0.0097]
[1757678720028,1.71845615,114930.0,114920.0,0.0107]
[1757678722226,1.69415606,114930.0,114920.0,0.0107]
[1757678722634,0.90055606,114930.0,114920.0,0.0107]
[1757678722835,1.69391606,114930.0,114920.0,0.0107]
[1757678724541,1.81904888,114930.0,114920.0,0.0107]
[1757678731437,1.44396,114930.0,114920.0,0.0107]
[1757678731625,1.81904888,114930.0,114920.0,0.0107]
[1757678732537,1.44396,114930.0,114920.0,0.0107]
[1757678732731,1.81904888,114930.0,114920.0,0.0107]
[1757678733838,1.44352,114930.0,114920.0,0.0107]
[1757678734039,1.81860888,114930.0,114920.0,0.0107]
[1757678736536,1.44352,114930.0,114920.0,0.0107]
[1757678736741,1.81860888,114930.0,114920.0,0.0107]
[1757678737138,1.44352,114930.0,114920.0,0.0107]
[1757678737340,1.81860888,114930.0,114920.0,0.0107]
[1757678739039,1.02568888,114930.0,114920.0,0.0107]
[1757678739244,1.81868888,114930.0,114920.0,0.0107]
[1757678739444,1.56868888,114930.0,114920.0,0.0107]
[1757678739742,1.1936,114930.0,114920.0,0.0107]
[1757678739934,1.56868888,114930.0,114920.0,0.0107]
[1757678740332,1.56856888,114930.0,114920.0,0.0107]
[1757678742646,1.59288078,114930.0,114920.0,0.0107]
[1757678750352,1.2177919,114930.0,114920.0,0.0107]
[1757678750546,1.59288078,114930.0,114920.0,0.0107]
[1757678751543,0.80000078,114930.0,114920.0,0.0107]
[1757678751748,1.59336078,114930.0,114920.0,0.0107]
[1757678754760,0.80000078,114930.0,114920.0,0.0107]
[1757678755056,1.59324078,114930.0,114920.0,0.0107]
[1757678757559,1.2181519,114930.0,114920.0,0.0107]
[1757678757757,1.59324078,114930.0,114920.0,0.0107]
[1757678757948,1.59296078,114930.0,114920.0,0.0107]
[1757678758150,1.59296078,114930.0,114920.0,0.03338]
[1757678758750,1.59296078,114930.0,114920.0,0.0107]
[1757678759156,1.59280078,114930.0,114920.0,0.0107]
[1757678759663,1.2177119,114930.0,114920.0,0.0107]
[1757678759963,1.59280078,114930.0,114920.0,0.0107]
[1757678760264,1.40525634,114930.0,114920.0,0.0107]
[1757678760854,1.59280078,114930.0,114920.0,0.0107]
[1757678764966,1.2177119,114930.0,114920.0,0.0107]
[1757678765270,1.59296078,114930.0,114920.0,0.0107]
[1757678770763,1.2178719,114930.0,114920.0,0.0107]
[1757678770966,1.59296078,114930.0,114920.0,0.002]
[1757678771168,0.80000078,114930.0,114920.0,0.002]
[1757678771368,1.59292078,114930.0,114920.0,0.002]
[1757678771870,1.59292078,114930.0,114920.0,0.0107]
[1757678773568,0.80000078,114930.0,114920.0,0.0107]
[1757678773772,1.59272078,114930.0,114920.0,0.0107]
[1757678774175,1.59268078,114930.0,114920.0,0.0107]
[1757678778267,1.2175919,114930.0,114920.0,0.0107]
[1757678778470,1.59268078,114930.0,114920.0,0.0107]
[1757678779976,0.80000078,114930.0,114920.0,0.0107]
[1757678780280,1.59236078,114930.0,114920.0,0.0107]
[1757678780473,1.2172719,114930.0,114920.0,0.0107]
[1757678780679,1.59236078,114930.0,114920.0,0.0107]
[1757678784280,1.59344078,114930.0,114920.0,0.0107]
[1757678786379,1.46843554,114930.0,114920.0,0.0107]
[1757678787779,1.48864698,114930.0,114920.0,0.0107]
[1757678787976,1.36360516,114930.0,114920.0,0.0107]
[1757678788184,1.48864698,114930.0,114920.0,0.0107]
[1757678790185,1.48864698,114930.0,114920.0,0.002]
[1757678792288,0.03557,114920.0,114910.0,0.0087]
[1757678792482,0.999202,114920.0,114910.0,0.0087]
[1757678793274,0.999202,114920.0,114900.0,0.0075625]
[1757678793479,1.31465182,114910.0,114900.0,0.0075625]
[1757678793680,1.46400554,114910.0,114900.0,0.0075625]
[1757678793884,1.33896372,114910.0,114900.0,0.0075625]
[1757678794488,1.33896372,114910.0,114900.0,0.0162625]
[1757678794989,0.54772372,114910.0,114900.0,0.0172625]
[1757678795182,1.34076372,114910.0,114900.0,0.0182625]
[1757678795382,1.34076372,114910.0,114900.0,0.0393625]
[1757678795582,1.34076372,114910.0,114900.0,0.2893625]
[1757678795991,1.34337372,114910.0,114900.0,0.2893625]
[1757678796791,1.3519435,114910.0,114900.0,0.2893625]
[1757678797989,1.420728,114910.0,114900.0,0.2893625]
[1757678799291,1.420728,114910.0,114900.0,0.0393625]
[1757678800193,1.3964161,114910.0,114900.0,0.0393625]
[1757678801590,0.6033761,114910.0,114900.0,0.0393625]
[1757678801787,0.6033761,114910.0,114900.0,0.0182625]
[1757678801992,1.3963761,114910.0,114900.0,0.0182625]
[1757678802996,1.3963361,114910.0,114900.0,0.0182625]
[1757678803391,0.6033761,114910.0,114900.0,0.0182625]
[1757678803591,1.3962961,114910.0,114900.0,0.0182625]
[1757678805599,0.47833428,114910.0,114900.0,0.0182625]
[1757678805802,1.3960961,114910.0,114900.0,0.0182625]
[1757678808705,1.3960561,114910.0,114900.0,0.0182625]
[1757678809716,0.6033761,114910.0,114900.0,0.0182625]
[1757678809908,1.27101428,114910.0,114900.0,0.0393625]
[1757678810113,1.3960561,114910.0,114900.0,0.0393625]
[1757678812108,1.3960561,114910.0,114900.0,0.0182625]
[1757678814707,1.3960561,114910.0,114900.0,0.0400525]
[1757678814915,1.3960561,114910.0,114900.0,0.0182625]
[1757678816120,1.27101428,114910.0,114900.0,0.0182625]
[1757678816314,1.3960561,114910.0,114900.0,0.0182625]
[1757678819618,0.6033761,114910.0,114900.0,0.0182625]
[1757678819919,1.3955761,114910.0,114900.0,0.0182625]
[1757678822322,1.42026617,114910.0,114900.0,0.0182625]
[1757678826429,1.29522435,114910.0,114900.0,0.0182625]
[1757678826625,1.42026617,114910.0,114900.0,0.0182625]
[1757678829828,0.43423985,114910.0,114900.0,0.0539025]
[1757678830132,0.39589978,114910.0,114900.0,0.55398614]
[1757678830333,0.38733,114910.0,114900.0,0.55398614]
[1757678830530,1.17941,114910.0,114900.0,0.64099544]
[1757678830732,0.00461,114910.0,114900.0,0.70996696]
[1757678831827,0.02766,114910.0,114900.0,0.37295766]
[1757678832033,0.02766,114910.0,114900.0,0.24791584]
[1757678832234,0.02766,114910.0,114900.0,0.17894432]
[1757678832730,0.02766,114910.0,114900.0,0.30398614]
[1757678832925,0.02766,114910.0,114900.0,0.0539025]
[1757678833125,0.02766,114910.0,114900.0,0.30398614]
[1757678833929,0.02766,114910.0,114900.0,0.55398614]
[1757678833930,0.38846,114910.0,114900.0,0.55398614]
[1757678834130,0.51350182,114910.0,114900.0,0.17894432]
[1757678834436,0.38846,114910.0,114900.0,0.17894432]
[1757678835540,0.67196453,114910.0,114900.0,0.0400525]
[1757678835725,0.79700635,114910.0,114900.0,0.0400525]
[1757678838927,0.86817097,114910.0,114900.0,0.0400525]
[1757678839631,1.66037097,114910.0,114900.0,0.0400525]
[1757678840840,1.66029097,114910.0,114900.0,0.0400525]
[1757678841634,1.68493489,114910.0,114900.0,0.0400525]
[1757678842634,1.66029097,114910.0,114900.0,0.0400525]
[1757678843442,1.53524915,114910.0,114900.0,0.0400525]
[1757678843632,1.66029097,114910.0,114900.0,0.0400525]
[1757678845045,1.53500915,114910.0,114900.0,0.16509432]
[1757678845238,0.86817097,114910.0,114900.0,0.16509432]
[1757678845437,1.66001097,114910.0,114900.0,0.16509432]
[1757678846837,1.66001097,114910.0,114900.0,0.0400525]
[1757678848545,1.72252755,114910.0,114900.0,0.2276109]
[1757678849641,1.72252755,114910.0,114900.0,0.0400525]
[1757678850746,1.72252755,114910.0,114900.0,0.2276109]
[1757678851249,1.72252755,114910.0,114900.0,0.0400525]
[1757678851447,1.72252755,114910.0,114900.0,0.2276109]
[1757678853652,1.72252755,114910.0,114900.0,0.0400525]
[1757678854352,1.53496915,114910.0,114900.0,0.0400525]
[1757678854552,1.72252755,114910.0,114900.0,0.0400525]
[1757678856057,1.53496915,114910.0,114900.0,0.0400525]
[1757678856255,1.72252755,114910.0,114900.0,0.0400525]
[1757678858849,1.72224755,114910.0,114900.0,0.0400525]
[1757678859247,1.47224755,114910.0,114900.0,0.0400525]
[1757678860256,1.47224755,114910.0,114900.0,0.0182625]
[1757678862756,1.65980595,114910.0,114900.0,0.0182625]
[1757678863753,1.47224755,114910.0,114900.0,0.0182625]
[1757678864363,1.65980595,114910.0,114900.0,0.0182625]
[1757678864863,0.86824595,114910.0,114900.0,0.0182625]
[1757678865059,1.65992595,114910.0,114900.0,0.0182625]
[1757678866056,1.28496915,114910.0,114900.0,0.0182625]
[1757678866250,1.47252755,114910.0,114900.0,0.0182625]
[1757678866453,0.68068755,114910.0,114900.0,0.0182625]
[1757678866657,1.28500915,114910.0,114900.0,0.0399725]
[1757678866865,1.47256755,114910.0,114900.0,0.0399725]
[1757678869649,0.68068755,114910.0,114900.0,0.0399725]
[1757678869854,1.47248755,114910.0,114900.0,0.0399725]
[1757678870456,1.28492915,114910.0,114900.0,0.0399725]
[1757678870654,0.68068755,114910.0,114900.0,0.0399725]
[1757678870861,1.47252755,114910.0,114900.0,0.0399725]
[1757678871867,1.28496915,114910.0,114900.0,0.0399725]
[1757678872061,1.47252755,114910.0,114900.0,0.0399725]
[1757678872758,1.28496915,114910.0,114900.0,0.0399725]
[1757678872966,1.28544915,114910.0,114900.0,0.0399725]
[1757678873158,1.47300755,114910.0,114900.0,0.0399725]
[1757678874661,1.49765216,114910.0,114900.0,0.0399725]
[1757678875060,1.49765216,114910.0,114900.0,0.0182625]
[1757678875663,1.68521056,114910.0,114900.0,0.0182625]
[1757678875864,1.31009376,114910.0,114900.0,0.0182625]
[1757678876061,1.68521056,114910.0,114900.0,0.0182625]
[1757678876261,1.66056595,114910.0,114900.0,0.0182625]
[1757678876462,1.28544915,114910.0,114900.0,0.0182625]
[1757678876661,1.66056595,114910.0,114900.0,0.0182625]
[1757678878868,1.6852089,114910.0,114900.0,0.0182625]
[1757678882963,1.3100921,114910.0,114900.0,0.0182625]
[1757678883164,1.6852089,114910.0,114900.0,0.0182625]
[1757678885275,1.3100921,114910.0,114900.0,0.0182625]
[1757678885476,1.6852089,114910.0,114900.0,0.0182625]
[1757678887265,0.5177721,114910.0,114900.0,0.0393725]
[1757678887473,1.6988889,114910.0,114900.0,0.0393725]
[1757678887871,1.6988889,114910.0,114900.0,0.0182625]
[1757678897887,1.3237721,114910.0,114900.0,0.0182625]
[1757678898090,1.6988889,114910.0,114900.0,0.0182625]
[1757678898387,1.3237721,114910.0,114900.0,0.0182625]
[1757678898585,0.3608,114900.0,114850.0,0.05]
[1757678898789,1.3192952,114860.0,114850.0,0.12105304]
[1757678899083,1.176643,114860.0,114850.0,0.02105304]
[1757678899286,1.985643,114860.0,114850.0,0.04216304]
[1757678899479,1.985643,114860.0,114850.0,0.02105304]
[1757678899885,3.1105262,114860.0,114850.0,0.02105304]
[1757678900087,3.6732014,114860.0,114850.0,0.02205304]
[1757678900285,3.6732014,114860.0,114840.0,0.0087]
[1757678900286,0.02798,114850.0,114840.0,0.0087]
[1757678900591,0.7638968,114850.0,114840.0,0.0087]
[1757678900985,0.8323831,114850.0,114840.0,0.0087]
[1757678901286,0.85714133,114850.0,114840.0,0.0087]
[1757678901796,0.85714133,114850.0,114840.0,0.0097]
[1757678902090,0.49287391,114850.0,114840.0,0.0097]
[1757678902294,0.86799071,114850.0,114840.0,0.0097]
[1757678902682,0.84584248,114850.0,114840.0,0.0097]
[1757678903394,0.84384248,114850.0,114840.0,0.0097]
[1757678903586,0.84584248,114850.0,114840.0,0.0097]
[1757678903783,0.47072568,114850.0,114840.0,0.0097]
[1757678903987,1.28152568,114850.0,114840.0,0.2185984]
[1757678904288,1.46908408,114850.0,114840.0,0.03004]
[1757678904488,0.65828408,114850.0,114840.0,0.28004]
[1757678904695,1.46928408,114850.0,114840.0,0.28004]
[1757678905687,1.47084408,114850.0,114840.0,0.28004]
[1757678906287,0.65828408,114850.0,114840.0,0.28004]
[1757678906486,1.30793742,114850.0,114840.0,0.28004]
[1757678906788,1.49549582,114850.0,114840.0,0.28004]
[1757678907197,0.48016804,114850.0,114840.0,0.6679268]
[1757678907496,0.36541,114850.0,114840.0,0.8554852]
[1757678907696,0.00461,114850.0,114840.0,0.6679268]
[1757678908091,0.36541,114850.0,114840.0,0.6679268]
[1757678908295,0.36541,114850.0,114840.0,0.29281]
[1757678908490,0.36541,114850.0,114840.0,0.5430664]
[1757678909000,0.36541,114850.0,114840.0,0.5343664]
[1757678909697,0.36541,114850.0,114840.0,0.6594946]
[1757678910198,0.36541,114850.0,114840.0,0.5343664]
[1757678910596,0.00461,114850.0,114840.0,0.6594946]
[1757678910797,0.00461,114850.0,114840.0,0.5343664]
[1757678911004,0.00461,114850.0,114840.0,0.8951664]
[1757678911196,0.00461,114850.0,114840.0,0.5343664]
[1757678913197,0.00461,114850.0,114840.0,0.6594946]
[1757678914704,0.00461,114850.0,114840.0,1.4731346]
[1757678915101,0.00461,114850.0,114840.0,1.8339346]
[1757678917007,0.00461,114850.0,114840.0,1.0202946]
[1757678917204,0.00461,114850.0,114840.0,1.7082064]
[1757678918406,0.38754,114850.0,114840.0,0.2843664]
[1757678919406,0.00461,114850.0,114840.0,0.2843664]
[1757678920500,0.36541,114850.0,114840.0,0.2843664]
[1757678921509,0.00461,114850.0,114840.0,0.2843664]
[1757678922709,0.36541,114850.0,114840.0,0.2843664]
[1757678923010,0.38754,114850.0,114840.0,0.03411]
[1757678923399,0.38754,114850.0,114840.0,0.2843664]
[1757678925010,0.36541,114850.0,114840.0,0.03411]
[1757678925212,0.36541,114850.0,114840.0,0.2843664]
[1757678925506,0.36541,114850.0,114840.0,0.03411]
[1757678925710,0.36541,114850.0,114840.0,0.2843664]
[1757678926407,0.38754,114850.0,114840.0,0.2843664]
[1757678927610,0.36541,114850.0,114840.0,0.2843664]
[1757678928705,0.38754,114850.0,114840.0,0.2843664]
[1757678929509,0.00461,114850.0,114840.0,0.5343664]
[1757678929717,0.00461,114850.0,114840.0,0.8951664]
[1757678929911,0.00461,114850.0,114840.0,0.5343664]
[1757678932411,0.00461,114850.0,114840.0,0.5430664]
[1757678933114,0.00461,114850.0,114840.0,0.29281]
[1757678933314,0.00461,114850.0,114840.0,0.5430664]
[1757678936018,0.00461,114850.0,114840.0,0.9038664]
[1757678938014,0.00461,114850.0,114840.0,0.65361]
[1757678938215,0.00461,114850.0,114840.0,0.9038664]
[1757678939208,0.00461,114850.0,114840.0,0.6538664]
[1757678939518,0.00461,114850.0,114840.0,0.7789946]
[1757678939918,0.00461,114850.0,114840.0,1.5889546]
[1757678940320,0.00461,114850.0,114840.0,1.4638264]
[1757678940615,0.00461,114850.0,114840.0,1.5889546]
[1757678940823,0.00461,114850.0,114840.0,1.6760095]
[1757678941011,0.00461,114850.0,114840.0,1.5889546]
[1757678942216,0.3608,114870.0,114840.0,1.5889546]
[1757678942416,0.38553618,114870.0,114860.0,0.2865164]
[1757678942616,0.40883618,114870.0,114860.0,0.2865164]
[1757678943722,0.41083618,114870.0,114860.0,0.2865164]
[1757678944620,0.3861,114870.0,114860.0,0.2865164]
[1757678945525,0.3871,114870.0,114860.0,0.2875164]
[1757678945931,0.3871,114870.0,114860.0,0.03726]
[1757678946224,0.3871,114870.0,114860.0,0.2875164]
[1757678947915,0.3638,114870.0,114860.0,0.2875164]
[1757678948118,0.3638,114870.0,114860.0,0.4126446]
[1757678948315,0.3638,114870.0,114860.0,1.2211646]
[1757678948521,0.003,114870.0,114860.0,1.4568364]
[1757678950625,0.003,114870.0,114860.0,1.4655364]
[1757678951021,0.003,114870.0,114860.0,1.5906646]
[1757678951427,0.003,114870.0,114860.0,1.4655364]
[1757678952529,0.003,114870.0,114860.0,1.5906646]
[1757678953230,0.003,114870.0,114860.0,1.4644964]
[1757678954933,0.003,114870.0,114860.0,1.5896246]
[1757678956726,0.003,114870.0,114860.0,0.7821446]
[1757678957124,0.003,114870.0,114860.0,1.5891446]
[1757678957418,0.003,114870.0,114860.0,1.4640164]
[1757678960534,0.003,114870.0,114860.0,0.6570164]
[1757678960731,0.003,114870.0,114860.0,1.4633364]
[1757678962133,0.003,114870.0,114860.0,1.5884646]
[1757678964334,0.003,114870.0,114860.0,1.4633364]
[1757678968538,0.003,114870.0,114860.0,1.77586134]
[1757678968932,0.003,114870.0,114860.0,1.77470134]
[1757678969636,0.003,114870.0,114860.0,1.77438134]
[1757678971446,0.003,114870.0,114860.0,0.96954134]
[1757678971639,0.003,114870.0,114860.0,1.77390134]
[1757678972644,0.003,114870.0,114860.0,0.96954134]
[1757678972839,0.003,114870.0,114860.0,1.77390134]
[1757678973146,0.003,114870.0,114860.0,1.77366134]
[1757678973943,0.003,114870.0,114860.0,0.96954134]
[1757678974147,0.02488,114870.0,114860.0,1.58590756]
[1757678974646,0.02488,114870.0,114860.0,0.78194756]
[1757678974948,0.02488,114870.0,114860.0,1.58578756]
[1757678975145,0.003,114870.0,114860.0,1.58578756]
[1757678975746,0.003,114870.0,114860.0,1.22498756]
[1757678976647,0.003,114870.0,114860.0,1.41258134]
[1757678977147,0.003,114870.0,114860.0,1.77338134]
[1757678984044,0.003,114870.0,114860.0,1.77258134]
[1757678985541,0.003,114870.0,114860.0,0.96954134]
[1757678985740,0.003,114870.0,114860.0,1.77242134]
[1757678991948,0.003,114870.0,114860.0,1.77246134]
[1757678992546,0.003,114870.0,114860.0,1.77238134]
[1757679000659,0.003,114870.0,114860.0,1.39675378]
[1757679002257,0.3608,114890.0,114860.0,1.39675378]
[1757679002565,0.38361,114890.0,114880.0,0.03582]
[1757679003169,0.38361,114890.0,114880.0,0.22341378]
[1757679003467,0.38661,114890.0,114880.0,0.22341378]
[1757679003669,0.38961,114890.0,114880.0,0.22341378]
[1757679004065,0.38661,114890.0,114880.0,0.22341378]
[1757679004277,0.38961,114890.0,114880.0,0.41970756]
[1757679005265,0.38961,114890.0,114880.0,0.42070756]
[1757679007167,0.02881,114890.0,114880.0,0.60830134]
[1757679007467,0.02881,114890.0,114880.0,0.42070756]
[1757679008365,0.006,114890.0,114880.0,0.42070756]
[1757679008967,0.02881,114890.0,114880.0,0.42070756]
[1757679009170,0.02881,114890.0,114880.0,0.04552]
[1757679009363,0.02881,114890.0,114880.0,0.42070756]
[1757679009662,0.006,114890.0,114880.0,0.42070756]
[1757679009861,0.02881,114890.0,114880.0,0.42070756]
[1757679013070,0.006,114890.0,114880.0,0.42070756]
[1757679014472,0.02881,114890.0,114880.0,0.42070756]
[1757679019578,0.03142,114890.0,114880.0,0.42070756]
[1757679020377,0.39222,114890.0,114880.0,0.42070756]
[1757679020770,0.03142,114890.0,114880.0,0.42070756]
[1757679021277,0.39222,114890.0,114880.0,0.42070756]
[1757679021679,0.03142,114890.0,114880.0,0.42070756]
[1757679023374,0.00861,114890.0,114880.0,0.42070756]
[1757679024583,0.03005,114890.0,114880.0,0.42070756]
[1757679027395,0.00861,114890.0,114880.0,0.42070756]
[1757679027589,0.03005,114890.0,114880.0,0.42070756]
[1757679030393,0.03005,114890.0,114880.0,0.29562186]
[1757679033695,0.00861,114890.0,114880.0,0.67067279]
[1757679034400,0.00861,114890.0,114880.0,1.03147279]
[1757679034602,0.00861,114890.0,114880.0,1.14108557]
[1757679034800,0.00861,114890.0,114880.0,1.22811037]
[1757679035400,0.205,114900.0,114890.0,0.0356]
[1757679035700,0.61625045,114920.0,114910.0,0.0356]
[1757679035894,0.60738324,114920.0,114910.0,0.16065093]
[1757679036497,0.60738324,114920.0,114910.0,0.15665093]
[1757679036704,0.04158324,114920.0,114910.0,0.28170186]
[1757679037095,0.04158324,114920.0,114910.0,0.29040186]
[1757679038503,0.02914324,114920.0,114910.0,0.29140186]
[1757679039101,0.05058324,114920.0,114910.0,0.29140186]
[1757679039498,0.04158324,114920.0,114910.0,0.29040186]
[1757679039698,0.04558324,114920.0,114910.0,0.29140186]
[1757679042605,0.04558324,114920.0,114910.0,0.0413]
[1757679043101,0.04558324,114920.0,114910.0,0.29140186]
[1757679045100,0.02414324,114920.0,114910.0,0.29140186]